Cogmind - Beta 13 @@@ ROGUE MODE // 2024.04.07 @ 18:33:20 Player: Patryk Z Result: Destroyed by S-27 Virus with Autogun Performance ------------- Evolutions (3) 1500 Regions Visited (6) 1200 Robots Destroyed (77) 385 Value Destroyed (1559) 1559 Prototype IDs (4) 80 Alien Tech Used (0) 0 Bonus (108) 108 TOTAL SCORE: 4832 Bonus ------- High Alert Combat Kills 55 Follower Combat Kills 159 Friendly Fire -106 Cogmind --------- Core Integrity 0/700 Matter 300/300 Energy 63/100 System Corruption 2% Temperature Cool (0) Movement Core (50) Location -7/Factory Parts ------- > --- POWER (2) -------- (None) > --- PROPULSION (4) --- (None) > --- UTILITY (5) ------ Improved Targeting Computer Weapon Cycler > --- WEAPON (2) ------- (None) > --- INVENTORY (5) ---- Aluminum Leg Improved Heat Sink Beamcaster Peak State ------------ > --- POWER ------------ Reinforced Ion Engine Nuclear Core > --- PROPULSION ------- Aluminum Leg Carbon-fiber Leg Carbon-fiber Leg Titanium Leg > --- UTILITY ---------- Improved Heat Sink Improved Targeting Computer Weapon Cycler Hardened Medium Armor Plating Reactive Plating > --- WEAPON ----------- Beamcaster Heavy Particle Cannon > --- INVENTORY -------- Ion Cannon Rocket Launcher [Rating: 38] Favorites ----------- Power Improved Ion Engine Engine Improved Ion Engine Power Core Nuclear Core Propulsion Aluminum Leg Treads Light Treads Leg Aluminum Leg Utility Sensor Array Device Sensor Array Storage Small Matter Pod Processor Improved Targeting Computer Protection Light Armor Plating Weapon Medium Laser Energy Gun Medium Laser Energy Cannon Heavy Particle Cannon Ballistic Gun Heavy Assault Rifle Launcher Rocket Launcher Special Weapon Plasma Flamer Build | -11 -10 -10 -9 -9 -8 -7 ------- Run | Yrd Mat Min Mat Min Mat Fac Slots Evolved 6 | . . . 2 . 2 2 Power 1 | . . . . . . 1 Propulsion 2 | . . . 1 . 1 . Utility 3 | . . . 1 . 1 1 Weapon . | . . . . . . . Parts Attached 91 | 11 5 17 17 20 12 9 Power 8 | 1 1 1 2 2 . 1 Engine 7 | 1 1 1 2 2 . . Core 1 | . . . . . . 1 Reactor . | . . . . . . . Propulsion 24 | 6 . 1 5 7 5 . Treads 2 | . . . . 2 . . Leg 22 | 6 . 1 5 5 5 . Wheel . | . . . . . . . Hover . | . . . . . . . Flight . | . . . . . . . Utility 39 | 2 3 11 5 8 6 4 Device 30 | 1 3 10 3 7 3 3 Storage 1 | 1 . . . . . . Processor 3 | . . 1 . 1 1 . Hackware . | . . . . . . . Protection 5 | . . . 2 . 2 1 Artifact . | . . . . . . . Weapon 20 | 2 1 4 5 3 1 4 Energy Gun 7 | 2 1 2 1 1 . . Energy Cannon 3 | . . . . . 1 2 Ballistic Gun 5 | . . . 3 1 . 1 Ballistic Cannon . | . . . . . . . Launcher 3 | . . 1 . 1 . 1 Special Weapon 2 | . . 1 1 . . . Impact Weapon . | . . . . . . . Slashing Weapon . | . . . . . . . Piercing Weapon . | . . . . . . . Special Melee Weapon . | . . . . . . . Unidentified Prototypes 1 | . . 1 . . . . Parts Lost 20 | . . 1 5 . . 14 Power 2 | . . . . . . 2 Propulsion 5 | . . . 1 . . 4 Utility 6 | . . . 2 . . 4 Weapon 7 | . . 1 2 . . 4 Highest Loss Streak 14 | . . 1 3 . . 14 To Critical Strikes . | . . . . . . . Average Slot Usage (%) 97 | . 100 99 93 99 99 94 Engine 10 | . 14 14 11 11 9 6 Core 1 | . . . . . . 6 Treads 1 | . . . . 5 . . Leg 28 | . 28 28 28 27 36 28 Device 18 | . 24 27 23 11 17 13 Processor 4 | . . . . 10 8 7 Protection 7 | . . . 8 11 10 14 Energy Gun 11 | . 28 16 5 12 10 3 Energy Cannon 1 | . . . . . 7 6 Ballistic Gun 4 | . . . 9 9 . 2 Launcher 1 | . . 2 4 . . . Special Weapon 2 | . . 8 1 . . . Naked Turns . | . . . . . . . Heaviest Build 51 | 9 11 13 22 23 40 51 Greatest Support 60 | 20 20 20 30 41 60 57 Greatest Overweight (x) 1 | . . . 1 1 . 1 Average Overweight (x) . | . . . . . . . Largest Inventory Capacity 5 | 5 5 5 5 5 5 5 Average Capacity 5 | 5 5 5 5 5 5 5 Most Carried 5 | 5 5 5 5 5 5 5 Average Carried 4 | 3 4 4 3 4 4 2 Final Capacity 5 | 5 5 5 5 5 5 5 Final Carried 5 | 4 5 4 5 4 3 3 Class Distribution -------------------- 64% | Scavenger-Mutant 35% | Mutant Dominant Class ---------------- Mutant | -10/Materials Mutant | -10/Mines Scavenger-Mutant | -9/Materials Scavenger-Mutant | -9/Mines Scavenger-Mutant | -8/Materials Scavenger-Mutant | -7/Factory Resources | -11 -10 -10 -9 -9 -8 -7 ----------- Run | Yrd Mat Min Mat Min Mat Fac Matter Collected 1596 | 310 50 181 381 347 142 185 Remotely . | . . . . . . . Salvage Created 2063 | 124 116 195 579 109 492 448 Parts 113 | 11 8 16 38 6 14 20 Haulers Intercepted . | . . . . . . . Recyclers Shooed 1 | . . . 1 . . . Parts Field Recycled . | . . . . . . . Retrieved Matter . | . . . . . . . Parts Self-Destructed . | . . . . . . . Prevented . | . . . . . . . Kills | -11 -10 -10 -9 -9 -8 -7 ------- Run | Yrd Mat Min Mat Min Mat Fac Combat Hostiles Destroyed 51 | 1 3 7 17 4 10 9 Guns 29 | 1 3 4 9 3 4 5 Cannons 14 | . . 3 3 . 6 2 AOE 8 | . . . 5 1 . 2 Classes Destroyed 10 | 3 2 1 3 1 . . Worker 6 | 1 . . 3 . . 2 Builder 6 | . . 3 3 . . . Tunneler 7 | 4 1 1 1 . . . Recycler 4 | . . . 1 . 2 1 Watcher 2 | . 1 . . . 1 . Swarmer 27 | . 2 5 7 3 6 4 Grunt 20 | 1 1 2 7 1 3 5 Brawler 1 | . . . 1 . . . Sentry 3 | . . . 2 . 1 . Zionite 1 | . . . . 1 . . Best Kill Streak 8 | 2 3 3 7 2 8 5 Combat Bots Only 6 | 1 2 3 5 2 6 4 Max Kills in Single Turn 4 | 1 1 2 4 1 2 2 Gunslinging 1 | . . 1 1 . . . Exploded 1 | . . . 1 1 . 1 Melee . | . . . . . . . Uniques/NPCs Destroyed . | . . . . . . . Combat | -11 -10 -10 -9 -9 -8 -7 -------- Run | Yrd Mat Min Mat Min Mat Fac Hostile Shots Fired 493 | 3 16 46 86 20 62 260 Missed 122 | 2 6 12 12 4 13 73 Damage Taken 3962 | 10 95 334 779 126 440 2178 Core 1011 | . 36 102 98 17 43 715 Absorbed by Shields . | . . . . . . . Ignored by Resistances 240 | . . . . . 70 170 Core Remaining (%) 76 | 100 . 44 . 71 92 . Volleys Fired 165 | 15 15 31 37 13 24 30 Largest 2 | 2 2 2 2 2 2 2 Hottest 150 | 100 100 150 150 89 150 103 Shots Fired 323 | 30 30 62 66 29 47 59 Gun 235 | 30 30 50 49 27 23 26 Cannon 54 | . . . . . 24 30 Launcher 13 | . . 1 7 2 . 3 Special 21 | . . 11 10 . . . Kinetic 72 | . . . 34 12 . 26 Thermal 231 | 30 30 54 25 15 47 30 Explosive 13 | . . 1 7 2 . 3 Electromagnetic 7 | . . 7 . . . . Robot Hit Streak 13 | 6 4 12 6 7 13 6 Robot Miss Streak 5 | 2 2 5 3 2 2 3 Penetration Max 1 | . . . . . . 1 Secondary Targets 2 | . . 1 1 . . . Max Gunslinging Chain 1 | . . 1 1 . . . Shots Hit Robots 195 | 18 16 37 41 14 33 36 Core Hits 121 | 7 7 14 34 15 16 28 Critical Kills . | . . . . . . . Critical Parts Destroyed 2 | . . . 1 . . 1 Critical Strikes 14 | 1 4 1 2 2 3 1 Burn 12 | 1 4 1 1 2 3 . Destroy 2 | . . . 1 . . 1 Melee Attacks . | . . . . . . . Impact . | . . . . . . . Slashing . | . . . . . . . Piercing . | . . . . . . . Sneak Attacks . | . . . . . . . Combat Hostiles . | . . . . . . . Follow-up Attacks . | . . . . . . . Damage Inflicted 4682 | 225 190 453 1262 656 824 1072 Guns 2225 | 225 190 351 478 194 399 388 Cannons 862 | . . . . . 425 437 Explosions 1372 | . . . 696 453 . 223 Melee . | . . . . . . . Ramming 33 | . . . . 9 . 24 Kinetic 810 | . . . 348 74 . 388 Thermal 2412 | 225 190 398 218 120 824 437 Explosive 1372 | . . . 696 453 . 223 Electromagnetic 55 | . . 55 . . . . Impact . | . . . . . . . Slashing . | . . . . . . . Piercing . | . . . . . . . Highest Corruption 4 | . . . 4 4 . 2 Average Corruption 3 | . . . 4 4 . 1 Corruption Purged . | . . . . . . . Corruption Blocked . | . . . . . . . Effects 34 | . . . 6 28 . . Message Errors 7 | . . . 1 6 . . Matter Fused 11 | . . . . 11 . . Heat Flow Errors 3 | . . . 1 2 . . Energy Discharges 3 | . . . 2 1 . . Parts Fused 1 | . . . . 1 . . Data Loss (minor) 3 | . . . 1 2 . . Data Loss (major) 3 | . . . 1 2 . . Misfires 3 | . . . . 3 . . Overload Shots . | . . . . . . . Overflow Damage 24 | . . . 24 . . . Projectiles . | . . . . . . . Explosions 24 | . . . 24 . . . Melee . | . . . . . . . Knockbacks 1 | . . . . 1 . . Impact 1 | . . . . 1 . . Kinetic . | . . . . . . . Secondary . | . . . . . . . Self-Inflicted Damage 83 | . . . 73 . . 10 Shots 2 | . . . 2 . . . Rammed 9 | . . . . . . 9 Targets Rammed 10 | . . . . 1 . 9 Kicked 1 | . . . . 1 . . Crushed . | . . . . . . . Highest Temperature 447 | 117 303 320 338 231 447 417 Average Temperature 115 | 47 95 82 105 93 178 174 Received Heat Transfer 912 | 6 30 129 159 . 99 489 Effects 9 | . . 1 3 1 4 . Shutdowns 2 | . . . . . 2 . Energy Bleed 1 | . . . . 1 . . Interference 3 | . . 1 2 . . . Matter Decay 2 | . . . 1 . 1 . Damage (major) 1 | . . . . . 1 . Siege Activations . | . . . . . . . Robots Corrupted . | . . . . . . . Combat Hostiles . | . . . . . . . Parts Fried . | . . . . . . . Impact Corruptions . | . . . . . . . Robots Melted . | . . . . . . . Combat Hostiles . | . . . . . . . Parts Melted 27 | 2 5 3 1 2 13 1 Heat Transferred 6873 | 740 851 1602 1053 407 1554 666 Parts Sabotaged . | . . . . . . . Parts Stolen . | . . . . . . . Parts Stripped . | . . . . . . . Power Chain Reactions . | . . . . . . . Alert | -11 -10 -10 -9 -9 -8 -7 ------- Run | Yrd Mat Min Mat Min Mat Fac Peak Influence 612 | 45 162 190 612 308 352 264 Initial 238 | . 29 . 35 238 . 68 Average 125 | 21 125 58 328 127 120 63 Maximum Alert Level 2 | . . . 2 1 1 1 Low Security (%) 77 | 100 100 100 29 68 69 94 Level 1 14 | . . . 19 31 30 5 Level 2 7 | . . . 51 . . . Level 3 . | . . . . . . . Level 4 . | . . . . . . . Level 5 . | . . . . . . . High Security . | . . . . . . . Max Security . | . . . . . . . Squads Dispatched 7 | . 1 . 3 . 1 2 Investigation 2 | . . . . . . 2 Extermination . | . . . . . . . Reinforcement 5 | . 1 . 3 . 1 . Assault . | . . . . . . . Garrison . | . . . . . . . Intercept . | . . . . . . . Searches Triggered . | . . . . . . . Construction Impeded 1 | . . . 1 . . . Haulers Reinforced . | . . . . . . . Active Scanning Responses . | . . . . . . . Cargo Convoy Interrupts . | . . . . . . . Stealth | -11 -10 -10 -9 -9 -8 -7 --------- Run | Yrd Mat Min Mat Min Mat Fac Distress Signals 8 | . . . 4 . 2 2 Communications Jammed . | . . . . . . . Distress Signals . | . . . . . . . Times Spotted 89 | 1 8 11 28 6 15 20 Peak Tracking Total 8 | 1 3 3 7 3 8 7 Tactical Retreats 5 | . . . 2 . 1 2 Traps | -11 -10 -10 -9 -9 -8 -7 ------- Run | Yrd Mat Min Mat Min Mat Fac Traps Triggered 1 | . . . . . 1 . Indirectly . | . . . . . . . Trap Hack Attempts . | . . . . . . . Triggered . | . . . . . . . Disarmed . | . . . . . . . Reprogrammed . | . . . . . . . Reused . | . . . . . . . Traps Extracted . | . . . . . . . Installed . | . . . . . . . Triggered . | . . . . . . . Machines | -11 -10 -10 -9 -9 -8 -7 ---------- Run | Yrd Mat Min Mat Min Mat Fac Machines Disabled 10 | . . . 6 . 1 3 Max in Single Turn 2 | . . . 2 . 1 1 Machines Repaired . | . . . . . . . Machines Dismantled . | . . . . . . . Machines Sabotaged . | . . . . . . . Overloaded Fab Kills . | . . . . . . . Hacking | -11 -10 -10 -9 -9 -8 -7 --------- Run | Yrd Mat Min Mat Min Mat Fac Machines Accessed 12 | . 4 1 3 . 1 3 Terminals 8 | . 4 1 1 . 1 1 Fabricators 1 | . . . . . . 1 Repair Stations 1 | . . . . . . 1 Recycling Units 1 | . . . 1 . . . Scanalyzers 1 | . . . 1 . . . Garrison Access . | . . . . . . . Total Hacks 35 | . 15 2 6 . 6 6 Successful 19 | . 9 1 5 . 2 2 Failed 16 | . 6 1 1 . 4 4 Catastrophic 4 | . 1 . 1 . 1 1 Database Lockouts . | . . . . . . . Manual 3 | . . 3 . . . . Terminals 27 | . 15 2 2 . 6 2 Fabricators 2 | . . . . . . 2 Repair Stations 2 | . . . . . . 2 Recycling Units 2 | . . . 2 . . . Scanalyzers 2 | . . . 2 . . . Garrison Access . | . . . . . . . Terminal Hacks 13 | . 9 1 1 . 2 . Record 7 | . 5 . . . 2 . Prototype ID Bank 1 | . . . 1 . . . Branch Access Points 1 | . 1 . . . . . Emergency Access Points 1 | . 1 . . . . . Alert Level 1 | . 1 . . . . . Dispatch Records 1 | . . 1 . . . . Zone Layout 1 | . 1 . . . . . Fabricator Hacks 2 | . . . . . . 2 Load Schematic 1 | . . . . . . 1 Build 1 | . . . . . . 1 Repair Station Hacks . | . . . . . . . Recycling Unit Hacks 2 | . . . 2 . . . Report Inventory 1 | . . . 1 . . . Retrieve Components 1 | . . . 1 . . . Scanalyzer 2 | . . . 2 . . . Insert Component 1 | . . . 1 . . . Analyze 1 | . . . 1 . . . Garrison Access Hacks . | . . . . . . . Unauthorized Hacks . | . . . . . . . Terminals . | . . . . . . . Fabricators . | . . . . . . . Repair Stations . | . . . . . . . Recycling Units . | . . . . . . . Scanalyzers . | . . . . . . . Garrison Access . | . . . . . . . Data Cores Recovered . | . . . . . . . Used . | . . . . . . . Hacking Detections 10 | . 4 1 1 . 1 3 Full Trace Events 3 | . . 1 . . . 2 Feedback Events . | . . . . . . . Feedback Blocked . | . . . . . . . Robot Schematics Acquired . | . . . . . . . Robots Built . | . . . . . . . Authchips . | . . . . . . . Time . | . . . . . . . Total Robot Build Rating . | . . . . . . . Part Schematics Acquired 1 | . . . 1 . . . Parts Built 1 | . . . . . . 1 Authchips . | . . . . . . . Time 49 | . . . . . . 49 Total Part Build Rating 2 | . . . . . . 2 Parts Repaired . | . . . . . . . Time . | . . . . . . . Parts Recycled . | . . . . . . . Recycled Matter . | . . . . . . . Retrieved Matter . | . . . . . . . Retrieved Components 10 | . . . 10 . . . Parts Scanalyzed 1 | . . . 1 . . . Part Schematics Acquired 1 | . . . 1 . . . Parts Damaged . | . . . . . . . Bothacking | -11 -10 -10 -9 -9 -8 -7 ------------ Run | Yrd Mat Min Mat Min Mat Fac Used RIF Installer . | . . . . . . . Robots Hacked . | . . . . . . . Non-combat . | . . . . . . . Combat . | . . . . . . . Robot Hacks Applied . | . . . . . . . Relay Couplers Released . | . . . . . . . Fabnet Peak Effective % . | . . . . . . . Robots Rewired . | . . . . . . . Allies Hacked . | . . . . . . . Hacks Repelled . | . . . . . . . Allies | -11 -10 -10 -9 -9 -8 -7 -------- Run | Yrd Mat Min Mat Min Mat Fac Total Allies 5 | . . 3 . 2 . . Largest Group 3 | . . 3 3 2 . . Highest-Rated Group 45 | . . 40 40 45 . . Highest-Rated Ally 31 | . . 16 16 31 . . Total Orders 4 | . . 4 . . . . GUARD 4 | . . 4 . . . . Ally Attacks 34 | . . 7 17 10 . . Total Damage 314 | . . 49 138 127 . . Kills 11 | . . 3 5 3 . . Allies Corrupted . | . . . . . . . Allies Melted . | . . . . . . . Intel | -11 -10 -10 -9 -9 -8 -7 ------- Run | Yrd Mat Min Mat Min Mat Fac Robot Analysis Total . | . . . . . . . Derelict Logs Recovered 2 | . . 1 . 1 . . Drone Launches . | . . . . . . . Drone Recoveries . | . . . . . . . Exploration | -11 -10 -10 -9 -9 -8 -7 ------------- Run | Yrd Mat Min Mat Min Mat Fac Turns Passed 4979 | 291 401 1024 734 1266 447 816 Spaces Moved 2483 | 167 232 630 448 523 232 251 Core 34 | 18 . . . . . 16 Treads 185 | . . . . 185 . . Legs 2264 | 149 232 630 448 338 232 235 Wheels . | . . . . . . . Hover . | . . . . . . . Flight . | . . . . . . . Fastest Speed 50 | 50 120 120 120 120 120 50 Average Speed 122 | 112 120 120 121 134 121 117 Slowest Speed 190 | 120 120 120 190 190 122 190 Overloaded Moves . | . . . . . . . Propulsion Burnouts . | . . . . . . . Robots Hopped . | . . . . . . . Cave-ins Triggered . | . . . . . . . Exploration Rate (%) 41 | 5 37 94 38 80 33 6 Regions Visited 6 Branch Regions 2 Pre-discovered Areas 1 | . . . . 1 . . Known Exits Taken 2 | . 1 . . 1 . . Unknown Exits Taken 4 | 1 . 1 1 . 1 . Scrap Searched 3 | . . 1 . 2 . . Spaces Dug 10 | . . 10 . . . . Terrain Destroyed 114 | . . 10 72 22 5 5 Melee . | . . . . . . . Projectile 5 | . . . . . 5 . AOE 109 | . . 10 72 22 . 5 Terrain Rammed . | . . . . . . . Walls Destroyed . | . . . . . . . Machines Disabled . | . . . . . . . Actions | -11 -10 -10 -9 -9 -8 -7 --------- Run | Yrd Mat Min Mat Min Mat Fac Total 4087 | 243 326 826 568 1057 352 715 Wait 1217 | 30 64 136 44 471 62 410 Move 2477 | 166 231 629 447 522 231 251 Hop . | . . . . . . . Pick Up 71 | 14 6 7 15 13 11 5 Fast Attach 2 | . . . . 1 1 . Attach 42 | 11 3 3 12 1 6 6 Detach 6 | 4 . . 1 . . 1 Swap 47 | . 2 14 5 18 5 3 Drop 50 | 3 5 6 7 17 12 . Fire 165 | 15 15 31 37 13 24 30 Melee . | . . . . . . . Ram 9 | . . . . . . 9 Kick 1 | . . . . 1 . . Crush . | . . . . . . . Escape Stasis . | . . . . . . . Rewire . | . . . . . . . Trap . | . . . . . . . Miscellaneous . | . . . . . . . Route ------- -11/Scrapyard -10/Materials (discovered 2 exits: *Mat / *Min) -10/Mines (discovered 2 exits: *Mat x2) -9/Materials -9/Mines (discovered 2 exits: *Mat x2) -8/Materials (discovered 2 exits: *Fac / [*Sto]) -7/Factory History --------- Turn | Location | Event 2 | -11/Scrapyard | Met Revision 17 87 | -11/Scrapyard | Discovered new exit (range 8) 292 | -11/Scrapyard | Entered Materials 312 | -10/Materials | Build established: Mutant 471 | -10/Materials | Identified exit to Mines 478 | -10/Materials | Discovered new exit (range 16) 693 | -10/Materials | Entered Mines 880 | -10/Mines | A weapon hastily lodged in a ceiling crevice suddenly fell to the ground 919 | -10/Mines | Discovered new exit (range 7) 929 | -10/Mines | Core integrity fell below 50% 1123 | -10/Mines | Discovered new exit (range 6) 1135 | -10/Mines | Assisted by bots powering up and referring to "LRC-V3" 1500 | -10/Mines | Received a Rocket Launcher from a helpful Derelict 1570 | -10/Mines | Found a damaged Exp. Sensor Array with a note attached 1606 | -10/Mines | Found Prototype Device 1608 | -10/Mines | Identified Exp. Sensor Array 1717 | -10/Mines | Entered Materials 1717 | -9/Materials | Accompanied by 3 allies 1717 | -9/Materials | Evolved 2 slots: Propulsion x1, Utility x1 2031 | -9/Materials | Build established: Scavenger-Mutant 2076 | -9/Materials | Lost 3 parts (1u2w) 2443 | -9/Materials | Discovered new exit (range 8) 2451 | -9/Materials | Entered Mines 3183 | -9/Mines | Discovered new exit (range 10) 3454 | -9/Mines | Assembled infested the area 3488 | -9/Mines | Learned location of Storage (-8) 3510 | -9/Mines | Met 8R-AWN 3584 | -9/Mines | Identified exit to Materials 3717 | -9/Mines | Entered Materials 3717 | -8/Materials | Evolved 2 slots: Propulsion x1, Utility x1 3792 | -8/Materials | Discovered new exit (range 16) 4147 | -8/Materials | Discovered new exit (range 12) 4164 | -8/Materials | Entered Factory 4164 | -7/Factory | Evolved 2 slots: Power x1, Utility x1 4837 | -7/Factory | Fabricated Imp. Medium Laser? 4966 | -7/Factory | Core integrity fell below 50% 4972 | -7/Factory | Core integrity fell below 20% 4980 | -7/Factory | Destroyed by S-27 Virus with Autogun Last Messages --------------- U-05 Engineer lays Concrete. Acquired Aluminum Leg. U-05 Engineer lays Concrete. Slammed into S-27 Virus. U-05 Engineer lays Concrete. Slammed into S-27 Virus. Destabilizing: System corrupted (+1). U-05 Engineer lays Concrete. Slammed into S-27 Virus. Destabilizing: Core damaged (-35). U-05 Engineer lays Concrete. Slammed into S-27 Virus. U-05 Engineer lays Concrete. Slammed into S-27 Virus. U-05 Engineer lays Concrete. Slammed into S-27 Virus. Destabilizing: System corrupted (+1). Slammed into S-27 Virus. R-06 Scavenger collects Wheel. [Achievement: First Step to Greatness] Map ----- +----------------------------------------------------+ | ?????????????????????????????????????????????????? | | ?????????????????????????????????????????????????? | | ?????????????????????????????????????????????????? | | ?????????????????????????????????????????????????? | | ?????????????????????????????????????????????????? | | ?????????????????????????????????????????????????? | | ?????????????????????????????????????????????????? | | ?????????????????????????????????????????????????? | | ?????????????????????????????????????????????????? | | ?????????????????????????????????????????????????? | | ?????????????????????????????????????????????????? | | ?????????????????????????????????????????????????? | | ?????????????????????????#+##????????????????????? | | ????????????????????????? ????????????????????? | | ????????????????????????? #????????????????????? | | ????????????????????????? #????????????????????? | | ????????????????????????? #????????????????????? | | ????????????????????????# #????????????????????? | | ????????????????????????# #????????????????????? | | ????????????????????????# #????????????????????? | | ????????????????????????+ +????????????????????? | | ????????????????????????# #????????????????????? | | ????????????????????????# #????????????????????? | | ????????????????????????# #????????????????????? | | ????????????????????????# #????????????????????? | | ????????????????????????#@ #????????????????????? | | ????????????????????????# #????????????????????? | | ????????????????#####?### ###??????????????????? | | ??????????????? ?# #??????????????????? | | ??????????????? """ # ########???????????? | | ???????????????" """ # ??????????? | | ???????????????" """%/% ?????????? | | ????????????? "T # ?????????? | | ????????????? "" ! # #########??????????? | | ????????????? "" = ?# #??????????????????? | | ????????????# ??## ##?##############???? | | ????????????########???# #??# #???? | | ???????????????????????# s #??# #???? | | ???????????????????????# =s####% """""" ##### | | ???????????????????????# s%%%/% """""" # | | ???????????????????????# % ####%% """"""=# | | ???????????????????????# #??#%% """""" +% | | ???????????????????????# #??#% #* | | ???????????????????????# #??# # | | ???????????????????????# #??# " ####+ | | ???????????????????????# #??# [ T" #???? | | ???????????????????????# #??# ! " #???? | | ???????????????????????# #??# =%= #???? | | ???????????????????????# #??#### #######???? | | ???????????????????????# #??? % ???????? | +----------------------------------------------------+ Best States ------------- Heat Dissipation 48 Energy Generation 21 Energy Capacity 405 Matter Stores 350 Matter Capacity 350 Sight Range 16 Robot Scan Range 20 Terrain Scan Range 16 Terrain Scan Density 85 Armor Coverage 525 Resistance: KI 20 Weapon Cycling 15 Evasion (%) 55 Targeting Accuracy 6 Recoil Reduction 4 Item Schematics ----------------- Imp. Medium Laser | -9/Materials | Scanalyzed Robot Schematics ------------------ None Fabricated ------------ Imp. Medium Laser | x1 | -7/Factory Alien Tech Used ----------------- None Achievements -------------- Backstab Crack Shot First Step to Greatness Just What I Needed Made in Tau Ceti IV One Hack Too Far Please Form A Line Risk Taker Safety First Storm Trooper Uninvited Guest Challenges ------------ None Game ------ Seed NuclearNeutrinoMachine Manual? 0 Play Time 02:52:58 Cumulative 2.8 hours Start 2024.04.07 @ 13:47:27 End 2024.04.07 @ 18:33:20 Sessions 1 Manual Loads 0 Difficulty Rogue Special Mode None Game No. 1 Rogue 1 Adventurer 0 Explorer 0 Win Type - Total 0 Types 0/0/0/0/0/0/0/0/0 Lore% 1 Gallery% 4 Achievement% 4 Wizard Run 0 Options --------- Layout 1 ASCII 0 Keyboard 0 Movement Mouse Keybinds 0 Fullscreen 2 Font 20/SmallcapsGlow Map View 32x21 Zoom Use 92% Tactical HUD 0 Map Filters NONE Filters NONE Steam 1 RUN: 7cd04045-ea4b-46d8-aa84-af6306fd0c7f